{"text_format":"1","workbook":"xlsx","n_sheets":9,"sheets":["Istruzioni_Compilazione","Riepilogo Utenze","Dati Generali","Elenco Sedi","Mod. Attivazione Nuove Utenze","Mod. Attiv. Nuove Utenze MNP","Mod. Migraz. Utenze da Mobile 6","Mod. Migr. Utenze da altro Cont","Pick List"],"not_rendered":{"charts":0,"images":6,"macros":1,"external_links":0,"defined_names":41,"comments":0,"pivot_tables":0},"unopened":[],"bounds":{"document_bytes":16777216,"sheet_cells":100000,"rows_first":2000,"rows_last":500,"rows_between":2000,"halvings":0,"cell_chars":16384,"cell_head_chars":4096},"cells_cut":0,"cells_raw":0,"read":"whole","date_system":"1900"}

{"sheet":"Istruzioni_Compilazione","index":0,"n_rows":64,"n_cols":4,"rows_kept":64,"cut":false,"hidden":false,"merged":[[63,0,63,8],[46,0,46,8],[47,0,47,8],[48,0,48,8],[49,0,49,8],[50,0,50,8],[52,0,52,8],[53,0,53,8],[55,0,55,8],[56,0,56,8],[15,1,15,2],[15,3,15,8],[16,1,16,2],[16,3,16,8],[35,1,35,2],[35,3,35,8],[34,1,34,2],[34,3,34,8],[27,1,27,2],[27,3,27,8],[30,0,30,8],[31,0,31,8],[32,1,32,2],[32,3,32,8],[33,1,33,2],[33,3,33,8],[38,1,38,2],[38,3,38,8],[39,1,39,2],[39,3,39,8],[26,1,26,2],[36,1,36,2],[36,3,36,8],[37,1,37,2],[37,3,37,8],[26,3,26,8],[40,0,40,8],[54,0,54,8],[41,0,41,8],[42,0,42,8],[43,0,43,8],[44,0,44,8],[45,0,45,8],[51,0,51,8],[19,0,19,8],[20,0,20,8],[25,1,25,2],[25,3,25,8],[17,1,17,8],[18,0,18,8],[24,1,24,2],[24,3,24,8],[21,0,21,8],[23,1,23,2],[23,3,23,8],[8,0,8,8],[10,1,10,2],[10,3,10,8],[12,3,12,8],[4,0,4,8],[5,0,5,8],[6,0,6,8],[14,1,14,2],[14,3,14,8],[11,1,11,2],[11,3,11,8],[12,1,12,2],[13,3,13,8],[13,1,13,2],[7,0,7,8],[0,0,0,8],[1,0,1,8],[2,0,2,8],[3,0,3,8]]}
["Modulo Utenze (SIM) e relativa configurazione - Istruzioni per la compilazione"]
["1) Compilare il MODULO DATI GENERALI"]
["2) Compilare il MODULO ELENCO SEDI"]
["3) Il numero di utenze ricaricabili con profilo a pacchetto da immettere a sistema per l'ODA deve essere coerente con il numero complessivo di utenze risultante dal foglio 'Riepilogo Utenze\". In caso contrario l'ordinativo sarà rifiutato."]
["4) Compilare i moduli relativi alla caratterizzazione e configurazione delle SIM: MODULO ATTIVAZIONE NUOVE UTENZE, MODULO ATTIVAZIONE NUOVE UTENZE IN MNP, MODULO MIGRAZIONE UTENZE DA MOBILE 6, MODULO MIGRAZIONE UTENZE DA ALTRO CONTRATTO.\n"]
["5) Le SIM del contratto dovranno essere configurate dall’Amministrazione riempiendo le tabelle di cui si compongono i suddetti moduli. Ciascuna riga identificherà una SIM, oppure un gruppo di SIM omogenee per caratteristiche. Di seguito la legenda dei diversi campi:\n\n'-N. della Sede di consegna: indicare la sede, come definita nel MODULO ELENCO SEDI, in cui devono essere consegnate le SIM definite nella riga.\n\n'- Quantità (solo per attivazione nuove utenze): indicare il numero di SIM omogenee per caratteristiche di configurazione"]
["'- Mantenimento SIM/Sostituzione SIM: selezionare una delle due opzioni che prevedono il mantenimento della SIM o la sostituzione con una SIM Triple cut da 128k"]
["-N.B. : Per successivi cambi di SIM non imputabili a guasti o malfunzionamenti ma dovuti a mutate esigenze relative al terminale radiomobile su cui utilizzare la SIM stessa, è previsto un corrispettivo di 2,00 € a cambio."]
["-Pacchetto Traffico NAZ+SEE (Spazio Economico Europeo): selezionare il piano tariffario tra \"Pacchetto S1\", \"Pacchetto S4\", \"Pacchetto M4\", \"Pacchetto M20\",\"Pacchetto L4\", e \"Pacchetto L20\". Tale campo è obbligatorio."]
[]
[null,"Campo Indicato",null,"Traffico (Voce+SMS+Dati) Nazionale + SEE - Caratteristiche del piano tariffario"]
[null,"Pacchetto S1",null,"Tariffa flat comprendente : 150 minuti/mese, 50 SMS/mese, 1 Gbyte/mese, con notifica al raggiungimento del 80% e 100% delle quantità previste nel pacchetto."]
[null,"Pacchetto S4",null,"Tariffa flat comprendente : 150 minuti/mese, 50 SMS/mese, 4 Gbyte/mese, con notifica al raggiungimento del 80% e 100% delle quantità previste nel pacchetto."]
[null,"Pacchetto M4",null,"Tariffa flat comprendente : 400 minuti/mese, 150 SMS/mese, 4 Gbyte/mese, con notifica al raggiungimento del 80% e 100% delle quantità previste nel pacchetto."]
[null,"Pacchetto M20",null,"Tariffa flat comprendente : 400 minuti/mese, 150 SMS/mese, 20 Gbyte/mese, con notifica al raggiungimento del 80% e 100% delle quantità previste nel pacchetto."]
[null,"Pacchetto L4",null,"Tariffa flat comprendente : 3000 minuti/mese, 300 SMS/mese, 4 Gbyte/mese, con notifica al raggiungimento del 80% e 100% delle quantità previste nel pacchetto."]
[null,"Pacchetto L20 - vedi nota * -",null,"Tariffa flat comprendente : 3000 minuti/mese, 300 SMS/mese, 20 Gbyte/mese, con notifica al raggiungimento del 80% e 100% delle quantità previste nel pacchetto."]
[null,"Tutti i pacchetti includono, nel mese solare: chiamate RPA e verso segreteria telefonica illimitate, 20 minuti verso numerazioni fisse e mobili internazionali,- 10 MMS."]
["- Traffico Over/Extra bundle: si ricorda che il traffico relativo a tali direttrici viene addebitato a consumo sul credito aziendale; tale modalità può generare la condizione di credito negativo che non consente il rinnovo del pacchetto stesso come previsto al Par 3.7.1 del Capitolato tecnico di Gara\n\"Per le utenze ricaricabili, tale attivazione (ndr del pacchetto) è subordinata alla presenza di un credito maggiore o uguale al prezzo del pacchetto. Nel caso in cui il credito non sia sufficiente, e non possa quindi essere attivato un pacchetto, l’utenza potrà comunque ricevere le chiamate e chiamare i numeri di emergenza\".\nSi consiglia pertanto, in caso di richiesta di attivazione di tali direttrici (Over/Extra Bundle) di scegliere una modalità di ricarica automatica del credito (Ricarica sotto soglia, Ricarica di Emergenza)."]
["- Traffico Over Bundle: selezionare una delle opzioni disponibili  \"Abilitato\" (nel caso in cui si voglia consentire il traffico a consumo a carico dell'Amministrazione sulle direttrici previste nel pacchetto ed eccedente i quantitativi compresi nel pacchetto stesso ) oppure \"Disabilitato\" (nel caso in cui NON si voglia consentire il traffico a consumo a carico dell'Amministrazione sulle direttrici previste nel pacchetto  eccedente i quantitativi compresi nel pacchetto stesso con conseguente riduzione della velocità a 32Kbit/s per il traffico dati). Tale campo è obbligatorio."]
["- Traffico Extra Bundle: selezionare una delle opzioni disponibili \"Abilitato\" (nel caso in cui si voglia consentire il traffico a consumo a carico dell'Amministrazione su direttrici non previste nel pacchetto stesso), \"Bloccato\" (nel caso in cui NON si voglia consentire il traffico a consumo a carico dell'Amministrazione su direttrici non previste nel pacchetto stesso) oppure \"Abilitato_TIM_TUO_ROAMING_ON_EXTRA_SEE\" (nel caso in cui si voglia consentire il traffico a consumo Roaming EXTRA SEE a carico del Dipendente).  Tale campo è obbligatorio."]
["- Traffico Roaming EXTRA SEE: selezionare il piano tariffario per il traffico dati Roaming EXTRA SEE (\"N.A.\", \"Pacchetto_giornaliero_R50\", \"Pacchetto_giornaliero_R100\",  \"A_carico_Dipendente\").  La scelta di uno dei due pacchetti giornalieri R50/R100 è obbligatoria nel caso in cui per il campo \"Traffico Extra Bundle\" è stata scelto \"Abilitato\"."]
[]
[null,"Campo Indicato",null,"Traffico Roaming EXTRA SSE - Caratteristiche del piano tariffario"]
[null,"N.A.",null,"Nel caso in cui sia stato scelto di disabilitare il traffico Extra Bundle."]
[null,"Pacchetto_giornaliero_R50",null,"Pacchetto giornaliero (30 minuti, 30 SMS, 50 MB), con notifica al raggiungimento dell' 80% e del 100% delle quantità previste nel pacchetto"]
[null,"Pacchetto_giornaliero_R100",null,"Pacchetto giornaliero (30 minuti, 30 SMS, 100 MB), con notifica al raggiungimento dell' 80% e del 100% delle quantità previste nel pacchetto"]
[null,"A_carico_Dipendente",null,"'Traffico dati roaming abilitato a carico del Dipendente in caso di abilitazione al TIM TUO Roaming ON EXTRA SEE, con la tariffa scelta dal dipendente"]
[]
[]
["- Traffico Roaming EXTRA SEE over Pacchetto giornaliero:  selezionare una delle opzioni disponibili  \"Abilitato\" (nel caso in cui si voglia consentire il Traffico dati roaming EXTRA SEE a consumo a carico dell'Amministrazione), \"Bloccato\" (nel caso in cui NON si voglia consentire il Traffico dati roaming EXTRA SEE a consumo a carico dell'Amministrazione ). Nel caso in cui si è scelto di disabilitare il traffico Extra Bundle l'unica opzione selezionabile sarà \"N.A.\"."]
["- Soglie Spesa Traffico Dati Roaming EXTRA SEE a consumo (applicate al traffico Dati Roaming EXTRA SEE a consumo solo nel caso in cui sia consentito il traffico roaming EXTRA SEE over pacchetto giornaliero): selezionare la soglia applicabile al traffico dati in roaming EXTRA SEE a consumo, per il traffico a consumo eventualmente consentito una volta esaurito il Pacchetto Giornaliero R50/R100 (\"50 € - Soglia Informativa\", \"50 € - Soglia -Dispositiva\", \"100 € - Soglia Informativa\", \"100 € - Soglia Dispositiva\", \"150 € - Soglia Informativa\", \"150 €- Soglia Dispositiva\"). Nel caso in cui sia abilitato il servizio TIM TUO Roaming ON EXTRA SEE, per il traffico dati roaming EXTRA SEE a consumo a carico del Dipendente è prevista l'attivazione automatica della soglia di spesa da 50€ come da Delibera AGCOM 326. Quindi tale soglia non deve richiesta né dal Referente dell’Amministrazione né dal Dipendente"]
[null,"Campo Indicato",null,"Traffico Roaming EXTRA UE - Soglie Informative/Dispositive sul traffico a consumo"]
[null,"50 € - Soglia Informativa",null,"Nel caso sia stato scelto uno dei pacchetti giornalieri R50/R100 abilitati al traffico roaming over Pacchetto giornaliero, tale campo prevede una notifica informativa al raggiungimento dell'80% e del 100% del limite massimo di 50 Euro (corrispondente a circa 200 MB in EXTRA SEE).\n"]
[null,"50 € - Soglia Dispositiva",null,"Nel caso sia stato scelto uno dei pacchetti giornalieri R50/R100 abilitati al traffico roaming over Pacchetto giornaliero, tale campo prevede una notifica informativa al raggiungimento dell'80% del limite massimo di 50 Euro (corrispondente a circa 200 MB in EXTRA SEE), e dispositiva al raggiungimento del 100% del suddetto limite massimo, con BLOCCO DEL TRAFFICO.\n"]
[null,"100 € - Soglia Informativa",null,"Nel caso sia stato scelto uno dei pacchetti giornalieri R50/R100 abilitati al traffico roaming over Pacchetto giornaliero, tale campo prevede una notifica informativa al raggiungimento dell'80% e del 100% del limite massimo di 100 "]
[null,"100 € - Soglia Dispositiva",null,"Nel caso sia stato scelto uno dei pacchetti giornalieri R50/R100 abilitati al traffico roaming over Pacchetto giornaliero, tale campo prevede una notifica informativa al raggiungimento dell'80% del limite massimo di 100 Euro (corrispondente a circa 400 MB in EXTRA SEE), e dispositiva al raggiungimento del 100% del suddetto limite massimo, con BLOCCO DEL TRAFFICO."]
[null,"150 € - Soglia Informativa",null,"Nel caso sia stato scelto uno dei pacchetti giornalieri R50/R100 abilitati al traffico roaming over Pacchetto giornaliero, tale campo prevede una notifica informativa al raggiungimento dell'80% e del 100% del limite massimo di 150 Euro (corrispondente a circa 600 MB in EXTRA SEE)."]
[null,"150 € - Soglia Dispositiva",null,"Nel caso sia stato scelto uno dei pacchetti giornalieri R50/R100 abilitati al traffico roaming over Pacchetto giornaliero, tale campo prevede una notifica informativa al raggiungimento dell'80% del limite massimo di 150 Euro (corrispondente a circa 600 MB in EXTRA SEE), e dispositiva al raggiungimento del 100% del suddetto limite massimo, con BLOCCO DEL TRAFFICO.\n"]
[null,"50 € - Soglia Dispositiva Dipendente",null,"Nel caso sia stato abilitato  il TIM TUO Roaming On EXTRA SEE per il traffico dati Roaming EXTRA SEE a consumo a carico del Dipendente è prevista l'abilitazione automatica di una soglia di spesa da 50 €, conforme alle disposizioni previste nella Delibera AGCOM 326. Tale soglia potrà essere disattivata o sbloccata direttamente dall'End User mediante un SMS con testo codificato \" DATI ESTERO ON\" in risposta all'SMS di notifica ricevuto. Se la soglia di spesa da 50€ è disattivata o sbloccata, la SIM potrà effettuare traffico dati EXTRA SEE senza limiti fino alla fine del mese."]
["- Utenza Standard o Prioritaria: con riferimento ai servizi di supporto tecnico differenziati per tipologia di utenza, selezionare “Standard” o “Prioritaria”"]
["- Modalità di Ricarica: Selezionare per le utenze del contratto, per la ricarica del credito, la modalità “rinuncia” (cioè la ricarica automatica mensile viene effettuata a meno che l'Amministrazione non chieda di rinunciarvi) o “conferma” (ciascuna ricarica automatica viene effettuata solo se l'Amministrazione la richiede esplicitamente); la modalità scelta potrà essere modificata successivamente  tramite gli OdF collegati al primo."]
["Attraverso il Portale della Convenzione,  o in alternativa tramite richiesta al Customer Care, il ROA potrà, entro al massimo un giorno antecedente la fine del mese solare, comunicare per ogni singola utenza del contratto per il mese di riferimento :"]
["per le utenze configurate in modalità rinuncia, la volontà di non effettuare la ricarica (che in assenza di tale comunicazione verrà effettuata in automatico);"]
["per le utenze configurate in modalità conferma, la volontà di effettuare la ricarica (che in assenza di tale comunicazione, non verrà effettuata)."]
["- Ricarica sotto soglia: Questa modalità di ricarica automatica, se autorizzata dall’Amministrazione con l’OdF, prevede, al raggiungimento di una soglia di credito residuo di 4,95€, l’accredito automatico di un taglio di ricarica (IVA inclusa) scelto fra le seguenti opzioni disponibili:\n(soglia 4,95 €)"]
["- Ricarica credito 6€;"]
["- Ricarica credito 12€;"]
["- Ricarica credito 24€;"]
["- Ricarica credito 48€."]
["Per tale opzione di ricarica è previsto un tetto massimo di due ricariche automatiche al mese; un’eventuale terza ricarica viene erogata solo all’inizio del mese solare successivo."]
["- Ricarica d'emergenza:  Questa modalità di ricarica automatica prevede, al raggiungimento di una soglia di credito residuo di 2,5€, l’accredito automatico di un taglio di ricarica di importo pari a 9€ (IVA inclusa) per un massimo di 20 volte nel mese solare. La ricarica di emergenza non è compatibile con quella “sotto soglia”, mentre è compatibile con la ricarica “One Shot”;"]
["Ricarica \"One Shot\": 'Questa modalità di ricarica a richiesta, utilizzabile per coprire le necessità straordinarie e prevede l’accredito di un taglio di ricarica di importo fisso (IVA inclusa) scelto dal Referente dell'Amministrazione fra le seguenti opzioni disponibili:\n Ricarica “One Shot” 7€;\n Ricarica “One Shot” 22€;\n Ricarica “One Shot” 44€;\n Ricarica “One Shot” 88€.\nLa richiesta di ricarica può essere effettuata, nel corso dello stesso mese, più volte per la stessa utenza anche con tagli differenti. \nLa ricarica “One Shot” è compatibile con tutte le altre modalità di ricarica."]
["-N.B: Si evidenzia che i meccanismi di ricarica automatica (sotto soglia o di emergenza) e il meccanismo di ricarica one-shot sono fra di loro indipendenti, la presenza dell'una non esclude l'attivazione dell'altra e nel caso fossero selezionate entrambe verranno addebitate contemporaneamente."]
["- Numero telefonico (per le sole utenze in MNP): indicare il numero telefonico di cui si chiede la portabilità\n\n- Numero telefonico (per le utenze in migrazione): indica il numero telefonico dell’utenza già intestata all’Amministrazione, o intestata al dipendente e da egli ceduta all’Amministrazione, da migrare da contratto extra-convenzione con TIM, alla Convenzione “Telefonia Mobile 7”\n\n- Numero telefonico (per le utenze di cui si chiede la variazione di configurazione): indicare il numero telefonico dell'utenza di cui si chiede la variazione di configurazione\n\n- Operatore Mobile (per le sole utenze in MNP): indicare l’Operatore Mobile di Provenienza\n\n'- Prepagato/Post-pagato (per le sole utenze in MNP): indicare la tipologia di servizio utilizzata nella rete di provenienza, cioè “Pre-pagato” o “Post-pagato” \n\n'- Numero Seriale SIM (per le sole utenze in MNP): indicare il seriale della SIM di cui si chiede la portabilità. Si tratta di un campo obbligatorio solo nel caso in cui il servizio utilizzato nella rete di provenienza è il prepagato\n\n'- Nome e Cognome/ Ragione Sociale (per le sole utenze in MNP): indicare Nome e Cognome dell’intestatario nel caso si tratti di una persona fisica; indicare la Ragione Sociale se l’intestatario è una Persona Giuridica\n\n'- Codice Fiscale (per le sole utenze in MNP): inserire il Codice Fiscale della Persona Fisica o della Persona GIuridica"]
["NOTA * Emergenza COVID-19\nPer venire incontro alle mutate esigenze di connettività legate alla gestione dell'emergenza COVID-19, è stata concordata la possibilità di estendere Opzionalemnte la disponibilità di traffico dati sulle utenze aggiungendo, al Pacchetto di Traffico NAZ+SEE L20, due ulteriori bundle dati da 40 GB o da 80 GB, che portano la disponibilità complessiva del bundle dati rispettivamente a 60 GB e 100 GB;\ne' possibile richiedere gli ulteriori pacchetti di traffico denominati L60 e L100, che si aggiungono al pacchetto L20, utilizzando la colonna Pacchetto Traffico NAZ+SEE in sostituzione presente in ogni foglio del modulo;\ntale colonna consente di inserire il taglio del nuovo pacchetto richiesto, il cui bundle dati complessivo è pari a 60 GB per il pacchetto L60 o 100 GB per il pacchetto L100;\nIl prezzo dell'incremento, per ciascuna utenza interessata, è di 3 €/mese per il bunde dati da 40 GB e 6 €/mese per il bunde dati da 80 GB. - tale opzione decadrà automaticamente a fine emergenza Covid19 -\n"]
["N.B. \n1) Le SIM saranno disabilitate di default ai servizi CSP (forniti cioè da Content Service Provider e corrispondenti a servizi premium a sovrapprezzo), ed attivati solo su richiesta dell’Amministrazione\n2) Il presente ordinativo deve essere inviato online, dal portale www.acquistinretepa.it, con firma digitale. Non è più consentito l'invio dell'ordinativo via fax. Eventuali ordinativi inviati in modalità differenti da quella prescritta saranno rifiutati."]
[]
[]
[]
[]
[]
[]
[""]

{"sheet":"Riepilogo Utenze","index":1,"n_rows":10,"n_cols":3,"rows_kept":10,"cut":false,"hidden":false,"merged":[[1,0,1,1]]}
[]
["Quantità utenze da inserire nell'ODA",null,"contatore automatico"]
[]
[null,"NOME VOCE A CATALOGO DA CERCARE:","quantità"]
[null,"Utenze Ricaricabili - Pacchetto - S1",{"$f":"SUMIF('Mod. Attivazione Nuove Utenze'!D4:D102,'Pick List'!B2,'Mod. Attivazione Nuove Utenze'!B4:B102)+COUNTIF('Mod. Attiv. Nuove Utenze MNP'!I4:I102,'Pick List'!B2)+COUNTIF('Mod. Migraz. Utenze da Mobile 6'!E4:E102,'Pick List'!B2)+COUNTIF('Mod. Migr. Utenze da altro Cont'!E4:E102,'Pick List'!B2)","v":0}]
[null,"Utenze Ricaricabili - Pacchetto - S4",{"$f":"SUMIF('Mod. Attivazione Nuove Utenze'!D4:D102,'Pick List'!B3,'Mod. Attivazione Nuove Utenze'!B4:B102)+COUNTIF('Mod. Attiv. Nuove Utenze MNP'!I4:I102,'Pick List'!B3)+COUNTIF('Mod. Migraz. Utenze da Mobile 6'!E4:E102,'Pick List'!B3)+COUNTIF('Mod. Migr. Utenze da altro Cont'!E4:E102,'Pick List'!B3)","v":0}]
[null,"Utenze Ricaricabili - Pacchetto - M4",{"$f":"SUMIF('Mod. Attivazione Nuove Utenze'!D4:D102,'Pick List'!B4,'Mod. Attivazione Nuove Utenze'!B4:B102)+COUNTIF('Mod. Attiv. Nuove Utenze MNP'!I4:I102,'Pick List'!B4)+COUNTIF('Mod. Migraz. Utenze da Mobile 6'!E4:E102,'Pick List'!B4)+COUNTIF('Mod. Migr. Utenze da altro Cont'!E4:E102,'Pick List'!B4)","v":0}]
[null,"Utenze Ricaricabili - Pacchetto - M20",{"$f":"SUMIF('Mod. Attivazione Nuove Utenze'!D4:D102,'Pick List'!B5,'Mod. Attivazione Nuove Utenze'!B4:B102)+COUNTIF('Mod. Attiv. Nuove Utenze MNP'!I4:I102,'Pick List'!B5)+COUNTIF('Mod. Migraz. Utenze da Mobile 6'!E4:E102,'Pick List'!B5)+COUNTIF('Mod. Migr. Utenze da altro Cont'!E4:E102,'Pick List'!B5)","v":0}]
[null,"Utenze Ricaricabili - Pacchetto - L4",{"$f":"SUMIF('Mod. Attivazione Nuove Utenze'!D4:D102,'Pick List'!B6,'Mod. Attivazione Nuove Utenze'!B4:B102)+COUNTIF('Mod. Attiv. Nuove Utenze MNP'!I4:I102,'Pick List'!B6)+COUNTIF('Mod. Migraz. Utenze da Mobile 6'!E4:E102,'Pick List'!B6)+COUNTIF('Mod. Migr. Utenze da altro Cont'!E4:E102,'Pick List'!B6)","v":11}]
[null,"Utenze Ricaricabili - Pacchetto - L20",{"$f":"SUMIF('Mod. Attivazione Nuove Utenze'!D4:D102,'Pick List'!B7,'Mod. Attivazione Nuove Utenze'!B4:B102)+COUNTIF('Mod. Attiv. Nuove Utenze MNP'!I4:I102,'Pick List'!B7)+COUNTIF('Mod. Migraz. Utenze da Mobile 6'!E4:E102,'Pick List'!B7)+COUNTIF('Mod. Migr. Utenze da altro Cont'!E4:E102,'Pick List'!B7)","v":8}]

{"sheet":"Dati Generali","index":2,"n_rows":40,"n_cols":2,"rows_kept":40,"cut":false,"hidden":false,"merged":[[2,1,3,1],[25,0,25,2],[26,0,26,2],[0,0,0,1],[37,0,37,2],[31,0,31,2],[32,0,32,2],[33,0,33,2],[34,0,34,2],[35,0,35,2],[36,0,36,2],[27,0,27,2],[28,0,28,2],[5,1,6,1],[30,0,30,2],[20,0,20,2],[21,0,21,2],[22,0,22,2],[23,0,23,2],[29,0,29,2],[24,0,24,2],[10,1,11,1]]}
["Dati Generali"]
[]
["Nr. Identificativo Ordine ",5659785]
["l’ordine al quale si riferisce il presente allegato"]
[]
["Nr. Codice Contratto "]
["da indicare solo nel caso di ordinativo collegato, cioè di ampliamento di contratto in convenzione già esistente"]
[]
[]
[]
["Attivazione delle SIM successiva alla consegna","si"]
["Indicare “SI” nel caso si desideri che le SIM siano attivate, dopo la consegna, su richiesta via fax dal Responsabile di Sede o via web dal Responsabile Operativo dell'Amministrazione. Nel caso non si indichi “SI”, le nuove SIM verranno attivate automaticamente a seguito del riscontro dell’operatore logistico della loro effettiva consegna all’Amministrazione. "]
[]
[]
["Responsabile Operativo dell'Amministrazione(*):"]
["Nome e cognome","CATIA MIGLIORINI"]
["Telefono (indicare il numero di telefono della SIM in convenzione, sulla quale verranno inviate le password per l'accesso al portale del fornitore per la convenzione)","349 0687519"]
["Indirizzo e-mail","MIGLIORINI@COMUNE.SOVICILLE.SI.IT"]
[]
[]
["(*) Il Responsabile Operativo dell'Amministrazione è la persona responsabile di tutte le attività di interfaccia operativa tra Amministrazione e Fornitore previste nel capitolato tecnico di gara."]
[]
[]
[]
[]
[]
[]
[]
[]
[]
[]
[]
[]
["- Segnalazione guasti, malfunzionamenti, disservizi al Customer Care"]
["- Gestione delle operazioni da effettuarsi in caso di furto o smarrimento del terminale radiomobile e della SIM"]
["- Ricezione dei documenti riepilogativi contenenti i dati di ciascuna spedizione relativa agli Ordinativi di Fornitura"]
["- Invio al Fornitore della richiesta di attivazione della SIM, qualora l’Amministrazione non abbia scelto l’opzione di attivazione automatica alla consegna della spedizione"]
["- Verifica, in fase di accettazione delle forniture, delle funzionalità degli apparati radiomobili ordinati ed eventuale segnalazione via fax al Fornitore del numero IMEI delle apparecchiature ritenute difettose"]
[]
["N.B.: compilare i campi evidenziati in giallo"]

{"sheet":"Elenco Sedi","index":3,"n_rows":34,"n_cols":8,"rows_kept":34,"cut":false,"hidden":false,"merged":[[0,0,0,7],[2,0,2,7],[3,2,3,7],[33,0,33,7],[36,1,37,1]]}
["Elenco Sedi"]
[]
["Elenco sedi di consegna delle SIM"]
["Numero totale sedi"]
["SEDE N.","DENOMINAZIONE","INDIRIZZO","COMUNE CAP","REFERENTE SEDE (*)","TELEFONO","FAX","E-MAIL"]
[1,"COMUNE DI SOVICILLE","PIAZZA MARCONI N. 1",53018,"CATIA MIGLIORINI","0577 049240","0577 314616","MIGLIORINI@COMUNE.SOVICILLE.SI.IT"]
[]
[]
[]
[]
[]
[]
[]
[]
[]
[]
[]
[]
[]
[]
[]
[]
[]
[]
[]
[]
[]
[]
[]
[]
[]
[]
[]
["(*) I Referenti di sede sopra indicati sono Responsabili delle attività di ricezione del materiale, invio dei riscontri via fax, richiesta di Assistenza Tecnica, e in generale degli aspetti inerenti la logistica."]

{"sheet":"Mod. Attivazione Nuove Utenze","index":4,"n_rows":106,"n_cols":16,"rows_kept":106,"cut":false,"hidden":false,"merged":[[1,0,1,9],[1,11,1,13],[0,0,0,14]]}
["Attivazione Nuove Utenze su profilo Ricaricabile"]
["Compilare la seguente tabella caratterizzando tutte le SIM richieste in base alle indicazioni per la caratterizzazione e configurazione delle SIM contenute nelle ISTRUZIONI PER LA COMPILAZIONE.\n(*) E' possibile richiedere l'attivazione di pacchetti incrementali durante la gestione dell'emergenza COVID-19, utilizzando la colonna denominata Pacchetto Traffico NAZ+SEE in sostituzione. (Es: Pacchetto L20 Gb + Opzione 40 Gb = 60Gb -  selezionare \"pacchetto L60\" nell'ultima colonna) -tale opzione decadrà automaticamente a fine emergenza Covid19 –",null,null,null,null,null,null,null,null,null,null,{"$f":"IF(P3,\"Attenzione: le Ricariche Sotto Soglia e la Ricarica One Shot se presenti entrambe vengono attivate in modo indipendente fra loro\",\"\")","v":""}]
["N. della Sede di consegna","Quantità","Tipologia Utenza","Pacchetto Traffico NAZ+SEE (*)","Traffico Over Bundle NAZ+SEE","Traffico Extra Bundle","Traffico Roaming EXTRA SEE  ","Traffico Roaming EXTRA SEE Over Pacchetto giornaliero","Soglie spesa dati roaming EXTRA SEE a consumo","Utenza Standard o Prioritaria","Modalità di Ricarica","Ricarica sotto soglia\n(soglia 4,95 €)","Ricarica d'emergenza (soglia 2,5 €)","Ricarica \"One Shot\"","Pacchetto Traffico NAZ+SEE in sostituzione (*)",{"$f":"SUM($P$4:$P$104)>0","v":false}]
[null,null,null,null,null,null,null,null,null,null,null,"6 €","N.A.","N.A.","N.A.",{"$f":"IF(AND(IF(L4=N.A.,0,1)+IF(M4=N.A.,0,1)>0,N4<>N.A.)=TRUE,1,0)","v":0}]
[null,null,null,null,null,null,null,null,null,null,null,"N.A.","N.A.","N.A.",null,{"$f":"IF(AND(IF(L5=N.A.,0,1)+IF(M5=N.A.,0,1)>0,N5<>N.A.)=TRUE,1,0)","v":0}]
[null,null,null,null,null,null,null,null,null,null,null,"N.A.","N.A.","N.A.",null,0]
[null,null,null,null,null,null,null,null,null,null,null,"N.A.","N.A.","N.A.",null,0]
[null,null,null,null,null,null,null,null,null,null,null,"N.A.","N.A.","N.A.",null,0]
[null,null,null,null,null,null,null,null,null,null,null,"N.A.","N.A.","N.A.",null,0]
[null,null,null,null,null,null,null,null,null,null,null,"N.A.","N.A.","22 €",null,0]
[null,null,null,null,null,null,null,null,null,null,null,"N.A.","N.A.","N.A.",null,0]
[null,null,null,null,null,null,null,null,null,null,null,"N.A.","N.A.","N.A.",null,0]
[null,null,null,null,null,null,null,null,null,null,null,"N.A.","N.A.","N.A.",null,0]
[null,null,null,null,null,null,"",null,null,null,null,"N.A.","N.A.","N.A.",null,0]
[null,null,null,null,null,null,null,null,null,null,null,"N.A.","N.A.","N.A.",null,0]
[null,null,null,null,null,null,"",null,null,null,null,"N.A.","N.A.","N.A.",null,0]
[null,null,null,null,null,null,"",null,null,null,null,"N.A.","N.A.","N.A.",null,0]
[null,null,null,null,null,null,"",null,null,null,null,"N.A.","N.A.","N.A.",null,0]
[null,null,null,null,null,null,"",null,null,null,null,"N.A.","N.A.","N.A.",null,0]
[null,null,null,null,null,null,"",null,null,null,null,"N.A.","N.A.","N.A.",null,0]
[null,null,null,null,null,null,"",null,null,null,null,"N.A.","N.A.","N.A.",null,0]
[null,null,null,null,null,null,"",null,null,null,null,"N.A.","N.A.","N.A.",null,0]
[null,null,null,null,null,null,"",null,null,null,null,"N.A.","N.A.","N.A.",null,0]
[null,null,null,null,null,null,"",null,null,null,null,"N.A.","N.A.","N.A.",null,0]
[null,null,null,null,null,null,"",null,null,null,null,"N.A.","N.A.","N.A.",null,0]
[null,null,null,null,null,null,"",null,null,null,null,"N.A.","N.A.","N.A.",null,0]
[null,null,null,null,null,null,"",null,null,null,null,"N.A.","N.A.","N.A.",null,0]
[null,null,null,null,null,null,"",null,null,null,null,"N.A.","N.A.","N.A.",null,0]
[null,null,null,null,null,null,"",null,null,null,null,"N.A.","N.A.","N.A.",null,0]
[null,null,null,null,null,null,"",null,null,null,null,"N.A.","N.A.","N.A.",null,0]
[null,null,null,null,null,null,"",null,null,null,null,"N.A.","N.A.","N.A.",null,0]
[null,null,null,null,null,null,"",null,null,null,null,"N.A.","N.A.","N.A.",null,0]
[null,null,null,null,null,null,"",null,null,null,null,"N.A.","N.A.","N.A.",null,0]
[null,null,null,null,null,null,"",null,null,null,null,"N.A.","N.A.","N.A.",null,0]
[null,null,null,null,null,null,"",null,null,null,null,"N.A.","N.A.","N.A.",null,0]
[null,null,null,null,null,null,"",null,null,null,null,"N.A.","N.A.","N.A.",null,{"$f":"IF(AND(IF(L36=N.A.,0,1)+IF(M36=N.A.,0,1)>0,N36<>N.A.)=TRUE,1,0)","v":0}]
[null,null,null,null,null,null,"",null,null,null,null,"N.A.","N.A.","N.A.",null,0]
[null,null,null,null,null,null,"",null,null,null,null,"N.A.","N.A.","N.A.",null,0]
[null,null,null,null,null,null,"",null,null,null,null,"N.A.","N.A.","N.A.",null,0]
[null,null,null,null,null,null,"",null,null,null,null,"N.A.","N.A.","N.A.",null,0]
[null,null,null,null,null,null,"",null,null,null,null,"N.A.","N.A.","N.A.",null,0]
[null,null,null,null,null,null,"",null,null,null,null,"N.A.","N.A.","N.A.",null,0]
[null,null,null,null,null,null,"",null,null,null,null,"N.A.","N.A.","N.A.",null,0]
[null,null,null,null,null,null,"",null,null,null,null,"N.A.","N.A.","N.A.",null,0]
[null,null,null,null,null,null,"",null,null,null,null,"N.A.","N.A.","N.A.",null,0]
[null,null,null,null,null,null,"",null,null,null,null,"N.A.","N.A.","N.A.",null,0]
[null,null,null,null,null,null,"",null,null,null,null,"N.A.","N.A.","N.A.",null,0]
[null,null,null,null,null,null,"",null,null,null,null,"N.A.","N.A.","N.A.",null,0]
[null,null,null,null,null,null,"",null,null,null,null,"N.A.","N.A.","N.A.",null,0]
[null,null,null,null,null,null,"",null,null,null,null,"N.A.","N.A.","N.A.",null,0]
[null,null,null,null,null,null,"",null,null,null,null,"N.A.","N.A.","N.A.",null,0]
[null,null,null,null,null,null,"",null,null,null,null,"N.A.","N.A.","N.A.",null,0]
[null,null,null,null,null,null,"",null,null,null,null,"N.A.","N.A.","N.A.",null,0]
[null,null,null,null,null,null,"",null,null,null,null,"N.A.","N.A.","N.A.",null,0]
[null,null,null,null,null,null,"",null,null,null,null,"N.A.","N.A.","N.A.",null,0]
[null,null,null,null,null,null,"",null,null,null,null,"N.A.","N.A.","N.A.",null,0]
[null,null,null,null,null,null,"",null,null,null,null,"N.A.","N.A.","N.A.",null,0]
[null,null,null,null,null,null,"",null,null,null,null,"N.A.","N.A.","N.A.",null,0]
[null,null,null,null,null,null,"",null,null,null,null,"N.A.","N.A.","N.A.",null,0]
[null,null,null,null,null,null,"",null,null,null,null,"N.A.","N.A.","N.A.",null,0]
[null,null,null,null,null,null,"",null,null,null,null,"N.A.","N.A.","N.A.",null,0]
[null,null,null,null,null,null,"",null,null,null,null,"N.A.","N.A.","N.A.",null,0]
[null,null,null,null,null,null,"",null,null,null,null,"N.A.","N.A.","N.A.",null,0]
[null,null,null,null,null,null,"",null,null,null,null,"N.A.","N.A.","N.A.",null,0]
[null,null,null,null,null,null,"",null,null,null,null,"N.A.","N.A.","N.A.",null,0]
[null,null,null,null,null,null,"",null,null,null,null,"N.A.","N.A.","N.A.",null,0]
[null,null,null,null,null,null,"",null,null,null,null,"N.A.","N.A.","N.A.",null,0]
[null,null,null,null,null,null,"",null,null,null,null,"N.A.","N.A.","N.A.",null,{"$f":"IF(AND(IF(L68=N.A.,0,1)+IF(M68=N.A.,0,1)>0,N68<>N.A.)=TRUE,1,0)","v":0}]
[null,null,null,null,null,null,"",null,null,null,null,"N.A.","N.A.","N.A.",null,0]
[null,null,null,null,null,null,"",null,null,null,null,"N.A.","N.A.","N.A.",null,0]
[null,null,null,null,null,null,"",null,null,null,null,"N.A.","N.A.","N.A.",null,0]
[null,null,null,null,null,null,"",null,null,null,null,"N.A.","N.A.","N.A.",null,0]
[null,null,null,null,null,null,"",null,null,null,null,"N.A.","N.A.","N.A.",null,0]
[null,null,null,null,null,null,"",null,null,null,null,"N.A.","N.A.","N.A.",null,0]
[null,null,null,null,null,null,"",null,null,null,null,"N.A.","N.A.","N.A.",null,0]
[null,null,null,null,null,null,"",null,null,null,null,"N.A.","N.A.","N.A.",null,0]
[null,null,null,null,null,null,"",null,null,null,null,"N.A.","N.A.","N.A.",null,0]
[null,null,null,null,null,null,"",null,null,null,null,"N.A.","N.A.","N.A.",null,0]
[null,null,null,null,null,null,"",null,null,null,null,"N.A.","N.A.","N.A.",null,0]
[null,null,null,null,null,null,"",null,null,null,null,"N.A.","N.A.","N.A.",null,0]
[null,null,null,null,null,null,"",null,null,null,null,"N.A.","N.A.","N.A.",null,0]
[null,null,null,null,null,null,"",null,null,null,null,"N.A.","N.A.","N.A.",null,0]
[null,null,null,null,null,null,"",null,null,null,null,"N.A.","N.A.","N.A.",null,0]
[null,null,null,null,null,null,"",null,null,null,null,"N.A.","N.A.","N.A.",null,0]
[null,null,null,null,null,null,"",null,null,null,null,"N.A.","N.A.","N.A.",null,0]
[null,null,null,null,null,null,"",null,null,null,null,"N.A.","N.A.","N.A.",null,0]
[null,null,null,null,null,null,"",null,null,null,null,"N.A.","N.A.","N.A.",null,0]
[null,null,null,null,null,null,"",null,null,null,null,"N.A.","N.A.","N.A.",null,0]
[null,null,null,null,null,null,"",null,null,null,null,"N.A.","N.A.","N.A.",null,0]
[null,null,null,null,null,null,"",null,null,null,null,"N.A.","N.A.","N.A.",null,0]
[null,null,null,null,null,null,"",null,null,null,null,"N.A.","N.A.","N.A.",null,0]
[null,null,null,null,null,null,"",null,null,null,null,"N.A.","N.A.","N.A.",null,0]
[null,null,null,null,null,null,"",null,null,null,null,"N.A.","N.A.","N.A.",null,0]
[null,null,null,null,null,null,"",null,null,null,null,"N.A.","N.A.","N.A.",null,0]
[null,null,null,null,null,null,"",null,null,null,null,"N.A.","N.A.","N.A.",null,0]
[null,null,null,null,null,null,"",null,null,null,null,"N.A.","N.A.","N.A.",null,0]
[null,null,null,null,null,null,"",null,null,null,null,"N.A.","N.A.","N.A.",null,0]
[null,null,null,null,null,null,"",null,null,null,null,"N.A.","N.A.","N.A.",null,0]
[null,null,null,null,null,null,"",null,null,null,null,"N.A.","N.A.","N.A.",null,0]
[null,null,null,null,null,null,"",null,null,null,null,"N.A.","N.A.","N.A.",null,{"$f":"IF(AND(IF(L100=N.A.,0,1)+IF(M100=N.A.,0,1)>0,N100<>N.A.)=TRUE,1,0)","v":0}]
[null,null,null,null,null,null,"",null,null,null,null,"N.A.","N.A.","N.A.",null,{"$f":"IF(AND(IF(L101=N.A.,0,1)+IF(M101=N.A.,0,1)>0,N101<>N.A.)=TRUE,1,0)","v":0}]
[null,null,null,null,null,null,"",null,null,null,null,"N.A.","N.A.","N.A.",null,{"$f":"IF(AND(IF(L102=N.A.,0,1)+IF(M102=N.A.,0,1)>0,N102<>N.A.)=TRUE,1,0)","v":0}]
[]
[]
["Note"]
["Le celle evidenziate in rosso indicano la selezione di campi non consentiti"]

{"sheet":"Mod. Attiv. Nuove Utenze MNP","index":5,"n_rows":106,"n_cols":21,"rows_kept":106,"cut":false,"hidden":false,"merged":[[1,0,1,11],[1,16,1,18],[0,0,0,19]]}
["Nuove Utenze in MNP: Profilo Ricaricabile"]
["Compilare la seguente tabella caratterizzando tutte le SIM richieste in base alle indicazioni per la caratterizzazione e configurazione delle SIM contenute nelle ISTRUZIONI PER LA COMPILAZIONE.\n(*) E' possibile richiedere l'attivazione di pacchetti incrementali durante la gestione dell'emergenza COVID-19, utilizzando la colonna denominata Pacchetto Traffico NAZ+SEE in sostituzione.(Es: Pacchetto L20 Gb + Opzione 40 Gb = 60Gb -  selezionare \"pacchetto L60\" nell'ultima colonna) -tale opzione decadrà automaticamente a fine emergenza Covid19 –",null,null,null,null,null,null,null,null,null,null,null,null,null,null,null,{"$f":"IF(U3,\"Attenzione: le Ricariche Sotto Soglia e la Ricarica One Shot se presenti entrambe vengono attivate in modo indipendente fra loro\",\"\")","v":""}]
["Numero Telefonico","Operatore Mobile","Prepagato/Post-Pagato","Numero seriale SIM","Nome e Cognome / Ragione Sociale","Codice Fiscale","N. della Sede di consegna","Tipologia Utenza","Traffico Over Bundle NAZ+SEE (*)","Traffico Over Bundle NAZ+SEE","Traffico Extra Bundle","Traffico Roaming EXTRA SEE  ","Traffico Roaming EXTRA SEE Over Pacchetto giornaliero","Soglie spesa dati roaming EXTRA SEE a consumo","Utenza Standard o Prioritaria","Modalità di Ricarica","Ricarica sotto soglia\n(soglia 4,95 €)","Ricarica d'emergenza (soglia 2,5 €)","Ricarica \"One Shot\"","Pacchetto Traffico NAZ+SEE in sostituzione (*)",{"$f":"SUM($U$4:$U$104)>0","v":false}]
[null,null,null,null,null,null,null,null,null,null,null,null,null,null,null,null,"6 €","N.A.","N.A.","N.A.",{"$f":"IF(AND(IF(Q4=N.A.,0,1)+IF(R4=N.A.,0,1)>0,S4<>N.A.)=TRUE,1,0)","v":0}]
[null,null,null,null,null,null,null,null,null,null,null,null,null,null,null,null,"N.A.","9 €","N.A.",null,0]
[null,null,null,null,null,null,null,null,null,null,null,null,null,null,null,null,"N.A.","N.A.","N.A.",null,0]
[null,null,null,null,null,null,null,null,null,null,null,null,null,null,null,null,"N.A.","N.A.","N.A.",null,0]
[null,null,null,null,null,null,null,null,null,null,null,null,null,null,null,null,"N.A.","N.A.","N.A.",null,0]
[null,null,null,null,null,null,null,null,null,null,null,null,null,null,null,null,"N.A.","N.A.","N.A.",null,0]
[null,null,null,null,null,null,null,null,null,null,null,null,null,null,null,null,"N.A.","N.A.","N.A.",null,0]
[null,null,null,null,null,null,null,null,null,null,null,null,null,null,null,null,"N.A.","N.A.","N.A.",null,0]
[null,null,null,null,null,null,null,null,null,null,null,null,null,null,null,null,"N.A.","N.A.","N.A.",null,0]
[null,null,null,null,null,null,null,null,null,null,null,null,null,null,null,null,"N.A.","N.A.","N.A.",null,0]
[null,null,null,null,null,null,null,null,null,null,null,null,null,null,null,null,"N.A.","N.A.","N.A.",null,0]
[null,null,null,null,null,null,null,null,null,null,null,null,null,null,null,null,"N.A.","N.A.","N.A.",null,0]
[null,null,null,null,null,null,null,null,null,null,null,null,null,null,null,null,"N.A.","N.A.","N.A.",null,0]
[null,null,null,null,null,null,null,null,null,null,null,null,null,null,null,null,"N.A.","N.A.","N.A.",null,0]
[null,null,null,null,null,null,null,null,null,null,null,null,null,null,null,null,"N.A.","N.A.","N.A.",null,0]
[null,null,null,null,null,null,null,null,null,null,null,null,null,null,null,null,"N.A.","N.A.","N.A.",null,0]
[null,null,null,null,null,null,null,null,null,null,null,null,null,null,null,null,"N.A.","N.A.","N.A.",null,0]
[null,null,null,null,null,null,null,null,null,null,null,null,null,null,null,null,"N.A.","N.A.","N.A.",null,0]
[null,null,null,null,null,null,null,null,null,null,null,null,null,null,null,null,"N.A.","N.A.","N.A.",null,0]
[null,null,null,null,null,null,null,null,null,null,null,null,null,null,null,null,"N.A.","N.A.","N.A.",null,0]
[null,null,null,null,null,null,null,null,null,null,null,null,null,null,null,null,"N.A.","N.A.","N.A.",null,0]
[null,null,null,null,null,null,null,null,null,null,null,null,null,null,null,null,"N.A.","N.A.","N.A.",null,0]
[null,null,null,null,null,null,null,null,null,null,null,null,null,null,null,null,"N.A.","N.A.","N.A.",null,0]
[null,null,null,null,null,null,null,null,null,null,null,null,null,null,null,null,"N.A.","N.A.","N.A.",null,0]
[null,null,null,null,null,null,null,null,null,null,null,null,null,null,null,null,"N.A.","N.A.","N.A.",null,0]
[null,null,null,null,null,null,null,null,null,null,null,null,null,null,null,null,"N.A.","N.A.","N.A.",null,0]
[null,null,null,null,null,null,null,null,null,null,null,null,null,null,null,null,"N.A.","N.A.","N.A.",null,0]
[null,null,null,null,null,null,null,null,null,null,null,null,null,null,null,null,"N.A.","N.A.","N.A.",null,0]
[null,null,null,null,null,null,null,null,null,null,null,null,null,null,null,null,"N.A.","N.A.","N.A.",null,0]
[null,null,null,null,null,null,null,null,null,null,null,null,null,null,null,null,"N.A.","N.A.","N.A.",null,0]
[null,null,null,null,null,null,null,null,null,null,null,null,null,null,null,null,"N.A.","N.A.","N.A.",null,0]
[null,null,null,null,null,null,null,null,null,null,null,null,null,null,null,null,"N.A.","N.A.","N.A.",null,0]
[null,null,null,null,null,null,null,null,null,null,null,null,null,null,null,null,"N.A.","N.A.","N.A.",null,{"$f":"IF(AND(IF(Q36=N.A.,0,1)+IF(R36=N.A.,0,1)>0,S36<>N.A.)=TRUE,1,0)","v":0}]
[null,null,null,null,null,null,null,null,null,null,null,null,null,null,null,null,"N.A.","N.A.","N.A.",null,0]
[null,null,null,null,null,null,null,null,null,null,null,null,null,null,null,null,"N.A.","N.A.","N.A.",null,0]
[null,null,null,null,null,null,null,null,null,null,null,null,null,null,null,null,"N.A.","N.A.","N.A.",null,0]
[null,null,null,null,null,null,null,null,null,null,null,null,null,null,null,null,"N.A.","N.A.","N.A.",null,0]
[null,null,null,null,null,null,null,null,null,null,null,null,null,null,null,null,"N.A.","N.A.","N.A.",null,0]
[null,null,null,null,null,null,null,null,null,null,null,null,null,null,null,null,"N.A.","N.A.","N.A.",null,0]
[null,null,null,null,null,null,null,null,null,null,null,null,null,null,null,null,"N.A.","N.A.","N.A.",null,0]
[null,null,null,null,null,null,null,null,null,null,null,null,null,null,null,null,"N.A.","N.A.","N.A.",null,0]
[null,null,null,null,null,null,null,null,null,null,null,null,null,null,null,null,"N.A.","N.A.","N.A.",null,0]
[null,null,null,null,null,null,null,null,null,null,null,null,null,null,null,null,"N.A.","N.A.","N.A.",null,0]
[null,null,null,null,null,null,null,null,null,null,null,null,null,null,null,null,"N.A.","N.A.","N.A.",null,0]
[null,null,null,null,null,null,null,null,null,null,null,null,null,null,null,null,"N.A.","N.A.","N.A.",null,0]
[null,null,null,null,null,null,null,null,null,null,null,null,null,null,null,null,"N.A.","N.A.","N.A.",null,0]
[null,null,null,null,null,null,null,null,null,null,null,null,null,null,null,null,"N.A.","N.A.","N.A.",null,0]
[null,null,null,null,null,null,null,null,null,null,null,null,null,null,null,null,"N.A.","N.A.","N.A.",null,0]
[null,null,null,null,null,null,null,null,null,null,null,null,null,null,null,null,"N.A.","N.A.","N.A.",null,0]
[null,null,null,null,null,null,null,null,null,null,null,null,null,null,null,null,"N.A.","N.A.","N.A.",null,0]
[null,null,null,null,null,null,null,null,null,null,null,null,null,null,null,null,"N.A.","N.A.","N.A.",null,0]
[null,null,null,null,null,null,null,null,null,null,null,null,null,null,null,null,"N.A.","N.A.","N.A.",null,0]
[null,null,null,null,null,null,null,null,null,null,null,null,null,null,null,null,"N.A.","N.A.","N.A.",null,0]
[null,null,null,null,null,null,null,null,null,null,null,null,null,null,null,null,"N.A.","N.A.","N.A.",null,0]
[null,null,null,null,null,null,null,null,null,null,null,null,null,null,null,null,"N.A.","N.A.","N.A.",null,0]
[null,null,null,null,null,null,null,null,null,null,null,null,null,null,null,null,"N.A.","N.A.","N.A.",null,0]
[null,null,null,null,null,null,null,null,null,null,null,null,null,null,null,null,"N.A.","N.A.","N.A.",null,0]
[null,null,null,null,null,null,null,null,null,null,null,null,null,null,null,null,"N.A.","N.A.","N.A.",null,0]
[null,null,null,null,null,null,null,null,null,null,null,null,null,null,null,null,"N.A.","N.A.","N.A.",null,0]
[null,null,null,null,null,null,null,null,null,null,null,null,null,null,null,null,"N.A.","N.A.","N.A.",null,0]
[null,null,null,null,null,null,null,null,null,null,null,null,null,null,null,null,"N.A.","N.A.","N.A.",null,0]
[null,null,null,null,null,null,null,null,null,null,null,null,null,null,null,null,"N.A.","N.A.","N.A.",null,0]
[null,null,null,null,null,null,null,null,null,null,null,null,null,null,null,null,"N.A.","N.A.","N.A.",null,0]
[null,null,null,null,null,null,null,null,null,null,null,null,null,null,null,null,"N.A.","N.A.","N.A.",null,0]
[null,null,null,null,null,null,null,null,null,null,null,null,null,null,null,null,"N.A.","N.A.","N.A.",null,{"$f":"IF(AND(IF(Q68=N.A.,0,1)+IF(R68=N.A.,0,1)>0,S68<>N.A.)=TRUE,1,0)","v":0}]
[null,null,null,null,null,null,null,null,null,null,null,null,null,null,null,null,"N.A.","N.A.","N.A.",null,0]
[null,null,null,null,null,null,null,null,null,null,null,null,null,null,null,null,"N.A.","N.A.","N.A.",null,0]
[null,null,null,null,null,null,null,null,null,null,null,null,null,null,null,null,"N.A.","N.A.","N.A.",null,0]
[null,null,null,null,null,null,null,null,null,null,null,null,null,null,null,null,"N.A.","N.A.","N.A.",null,0]
[null,null,null,null,null,null,null,null,null,null,null,null,null,null,null,null,"N.A.","N.A.","N.A.",null,0]
[null,null,null,null,null,null,null,null,null,null,null,null,null,null,null,null,"N.A.","N.A.","N.A.",null,0]
[null,null,null,null,null,null,null,null,null,null,null,null,null,null,null,null,"N.A.","N.A.","N.A.",null,0]
[null,null,null,null,null,null,null,null,null,null,null,null,null,null,null,null,"N.A.","N.A.","N.A.",null,0]
[null,null,null,null,null,null,null,null,null,null,null,null,null,null,null,null,"N.A.","N.A.","N.A.",null,0]
[null,null,null,null,null,null,null,null,null,null,null,null,null,null,null,null,"N.A.","N.A.","N.A.",null,0]
[null,null,null,null,null,null,null,null,null,null,null,null,null,null,null,null,"N.A.","N.A.","N.A.",null,0]
[null,null,null,null,null,null,null,null,null,null,null,null,null,null,null,null,"N.A.","N.A.","N.A.",null,0]
[null,null,null,null,null,null,null,null,null,null,null,null,null,null,null,null,"N.A.","N.A.","N.A.",null,0]
[null,null,null,null,null,null,null,null,null,null,null,null,null,null,null,null,"N.A.","N.A.","N.A.",null,0]
[null,null,null,null,null,null,null,null,null,null,null,null,null,null,null,null,"N.A.","N.A.","N.A.",null,0]
[null,null,null,null,null,null,null,null,null,null,null,null,null,null,null,null,"N.A.","N.A.","N.A.",null,0]
[null,null,null,null,null,null,null,null,null,null,null,null,null,null,null,null,"N.A.","N.A.","N.A.",null,0]
[null,null,null,null,null,null,null,null,null,null,null,null,null,null,null,null,"N.A.","N.A.","N.A.",null,0]
[null,null,null,null,null,null,null,null,null,null,null,null,null,null,null,null,"N.A.","N.A.","N.A.",null,0]
[null,null,null,null,null,null,null,null,null,null,null,null,null,null,null,null,"N.A.","N.A.","N.A.",null,0]
[null,null,null,null,null,null,null,null,null,null,null,null,null,null,null,null,"N.A.","N.A.","N.A.",null,0]
[null,null,null,null,null,null,null,null,null,null,null,null,null,null,null,null,"N.A.","N.A.","N.A.",null,0]
[null,null,null,null,null,null,null,null,null,null,null,null,null,null,null,null,"N.A.","N.A.","N.A.",null,0]
[null,null,null,null,null,null,null,null,null,null,null,null,null,null,null,null,"N.A.","N.A.","N.A.",null,0]
[null,null,null,null,null,null,null,null,null,null,null,null,null,null,null,null,"N.A.","N.A.","N.A.",null,0]
[null,null,null,null,null,null,null,null,null,null,null,null,null,null,null,null,"N.A.","N.A.","N.A.",null,0]
[null,null,null,null,null,null,null,null,null,null,null,null,null,null,null,null,"N.A.","N.A.","N.A.",null,0]
[null,null,null,null,null,null,null,null,null,null,null,null,null,null,null,null,"N.A.","N.A.","N.A.",null,0]
[null,null,null,null,null,null,null,null,null,null,null,null,null,null,null,null,"N.A.","N.A.","N.A.",null,0]
[null,null,null,null,null,null,null,null,null,null,null,null,null,null,null,null,"N.A.","N.A.","N.A.",null,0]
[null,null,null,null,null,null,null,null,null,null,null,null,null,null,null,null,"N.A.","N.A.","N.A.",null,0]
[null,null,null,null,null,null,null,null,null,null,null,null,null,null,null,null,"N.A.","N.A.","N.A.",null,{"$f":"IF(AND(IF(Q100=N.A.,0,1)+IF(R100=N.A.,0,1)>0,S100<>N.A.)=TRUE,1,0)","v":0}]
[null,null,null,null,null,null,null,null,null,null,null,null,null,null,null,null,"N.A.","N.A.","N.A.",null,{"$f":"IF(AND(IF(Q101=N.A.,0,1)+IF(R101=N.A.,0,1)>0,S101<>N.A.)=TRUE,1,0)","v":0}]
[null,null,null,null,null,null,null,null,null,null,null,null,null,null,null,null,"N.A.","N.A.","N.A.",null,{"$f":"IF(AND(IF(Q102=N.A.,0,1)+IF(R102=N.A.,0,1)>0,S102<>N.A.)=TRUE,1,0)","v":0}]
[]
[]
["Note"]
["Le celle evidenziate in rosso indicano la selezione di campi non consentiti"]

{"sheet":"Mod. Migraz. Utenze da Mobile 6","index":6,"n_rows":106,"n_cols":17,"rows_kept":106,"cut":false,"hidden":false,"merged":[[1,0,1,10],[1,12,1,14],[0,0,0,16]]}
["Utenze intestate all'Amministrazione da migrare dalla Convenzione Mobile 6 su profilo Ricaricabile"]
["Compilare la seguente tabella caratterizzando tutte le SIM richieste in base alle indicazioni per la caratterizzazione e configurazione delle SIM contenute nelle ISTRUZIONI PER LA COMPILAZIONE.\n(*) E' possibile richiedere l'attivazione di pacchetti incrementali durante la gestione dell'emergenza COVID-19, utilizzando la colonna denominata Pacchetto Traffico NAZ+SEE in sostituzione. (Es: Pacchetto L20 Gb + Opzione 40 Gb = 60Gb -  selezionare \"pacchetto L60\" nell'ultima colonna) -tale opzione decadrà automaticamente a fine emergenza Covid19 –",null,null,null,null,null,null,null,null,null,null,null,"Attenzione: le Ricariche Sotto Soglia e la Ricarica One Shot se presenti entrambe vengono attivate in modo indipendente fra loro"]
["N. della Sede di consegna","Numero Telefonico","Mantenimento SIM/\nSostituzione SIM","Tipologia Utenza","Traffico Over Bundle NAZ+SEE (*)","Traffico Over Bundle NAZ+SEE","Traffico Extra Bundle","Traffico Roaming EXTRA SEE  ","Traffico Roaming EXTRA SEE Over Pacchetto giornaliero","Soglie spesa dati roaming EXTRA SEE a consumo","Utenza Standard o Prioritaria","Modalità di Ricarica","Ricarica sotto soglia\n(soglia 4,95 €)","Ricarica d'emergenza (soglia 2,5 €)","Ricarica \"One Shot\"","Pacchetto Traffico NAZ+SEE in sostituzione (*)",{"$f":"SUM($Q$4:$Q$104)>0","v":false}]
[1,"320 4317200","Mantenimento","Fonia_Dati","Pacchetto_L20","Disabilitato - Attenzione per l'attivazione della prestazione deve essere presente almeno una ricarica sotto soglia o una ricarica di emergenza","Bloccato","N.A.","N.A.","N.A.","Standard","Rinuncia","N.A.","N.A.","N.A.",null,{"$f":"IF(AND(IF(M4=N.A.,0,1)+IF(N4=N.A.,0,1)>0,O4<>N.A.)=TRUE,1,0)","v":0}]
[1,"320 4317208","Nuova SIM 128K Triple Cut","Fonia_Dati","Pacchetto_L20","Disabilitato - Attenzione per l'attivazione della prestazione deve essere presente almeno una ricarica sotto soglia o una ricarica di emergenza","Bloccato","N.A.","N.A.","N.A.","Standard","Rinuncia","N.A.","N.A.","N.A.",null,0]
[1,"320 4317209","Nuova SIM 128K Triple Cut","Fonia_Dati","Pacchetto_L20","Disabilitato - Attenzione per l'attivazione della prestazione deve essere presente almeno una ricarica sotto soglia o una ricarica di emergenza","Bloccato","N.A.","N.A.","N.A.","Standard","Rinuncia","N.A.","N.A.","N.A.",null,0]
[1,"329 2606971","Nuova SIM 128K Triple Cut","Fonia_Dati","Pacchetto_L20","Disabilitato - Attenzione per l'attivazione della prestazione deve essere presente almeno una ricarica sotto soglia o una ricarica di emergenza","Bloccato","N.A.","N.A.","N.A.","Standard","Rinuncia","N.A.","N.A.","N.A.",null,0]
[1,"329 2606972","Nuova SIM 128K Triple Cut","Fonia_Dati","Pacchetto_L4","Disabilitato - Attenzione per l'attivazione della prestazione deve essere presente almeno una ricarica sotto soglia o una ricarica di emergenza","Bloccato","N.A.","N.A.","N.A.","Standard","Rinuncia","N.A.","N.A.","N.A.",null,0]
[1,"336 706748","Nuova SIM 128K Triple Cut","Fonia_Dati","Pacchetto_L20","Disabilitato - Attenzione per l'attivazione della prestazione deve essere presente almeno una ricarica sotto soglia o una ricarica di emergenza","Bloccato","N.A.","N.A.","N.A.","Standard","Rinuncia","N.A.","N.A.","N.A.",null,0]
[1,"339 4011642","Nuova SIM 128K Triple Cut","Fonia_Dati","Pacchetto_L4","Disabilitato - Attenzione per l'attivazione della prestazione deve essere presente almeno una ricarica sotto soglia o una ricarica di emergenza","Bloccato","N.A.","N.A.","N.A.","Standard","Rinuncia","N.A.","N.A.","N.A.",null,0]
[1,"334 6945094","Nuova SIM 128K Triple Cut","Fonia_Dati","Pacchetto_L20","Disabilitato - Attenzione per l'attivazione della prestazione deve essere presente almeno una ricarica sotto soglia o una ricarica di emergenza","Bloccato","N.A.","N.A.","N.A.","Standard","Rinuncia","N.A.","N.A.","N.A.",null,0]
[1,"335 7805372","Nuova SIM 128K Triple Cut","Fonia_Dati","Pacchetto_L20","Disabilitato - Attenzione per l'attivazione della prestazione deve essere presente almeno una ricarica sotto soglia o una ricarica di emergenza","Bloccato","N.A.","N.A.","N.A.","Standard","Rinuncia","N.A.","N.A.","N.A.",null,0]
[null,null,null,null,null,null,null,null,null,null,null,null,"N.A.","N.A.","N.A.",null,0]
[null,null,null,null,null,null,null,null,null,null,null,null,"N.A.","N.A.","N.A.",null,0]
[null,null,null,null,null,null,null,null,null,null,null,null,"N.A.","N.A.","N.A.",null,0]
[null,null,null,null,null,null,null,null,null,null,null,null,"N.A.","N.A.","N.A.",null,0]
[null,null,null,null,null,null,null,null,null,null,null,null,"N.A.","N.A.","N.A.",null,0]
[null,null,null,null,null,null,null,null,null,null,null,null,"N.A.","N.A.","N.A.",null,0]
[null,null,null,null,null,null,null,null,null,null,null,null,"N.A.","N.A.","N.A.",null,0]
[null,null,null,null,null,null,null,null,null,null,null,null,"N.A.","N.A.","N.A.",null,0]
[null,null,null,null,null,null,null,null,null,null,null,null,"N.A.","N.A.","N.A.",null,0]
[null,null,null,null,null,null,null,null,null,null,null,null,"N.A.","N.A.","N.A.",null,0]
[null,null,null,null,null,null,null,null,null,null,null,null,"N.A.","N.A.","N.A.",null,0]
[null,null,null,null,null,null,null,null,null,null,null,null,"N.A.","N.A.","N.A.",null,0]
[null,null,null,null,null,null,null,null,null,null,null,null,"N.A.","N.A.","N.A.",null,0]
[null,null,null,null,null,null,null,null,null,null,null,null,"N.A.","N.A.","N.A.",null,0]
[null,null,null,null,null,null,null,null,null,null,null,null,"N.A.","N.A.","N.A.",null,0]
[null,null,null,null,null,null,null,null,null,null,null,null,"N.A.","N.A.","N.A.",null,0]
[null,null,null,null,null,null,null,null,null,null,null,null,"N.A.","N.A.","N.A.",null,0]
[null,null,null,null,null,null,null,null,null,null,null,null,"N.A.","N.A.","N.A.",null,0]
[null,null,null,null,null,null,null,null,null,null,null,null,"N.A.","N.A.","N.A.",null,0]
[null,null,null,null,null,null,null,null,null,null,null,null,"N.A.","N.A.","N.A.",null,0]
[null,null,null,null,null,null,null,null,null,null,null,null,"N.A.","N.A.","N.A.",null,0]
[null,null,null,null,null,null,null,null,null,null,null,null,"N.A.","N.A.","N.A.",null,0]
[null,null,null,null,null,null,null,null,null,null,null,null,"N.A.","N.A.","N.A.",null,0]
[null,null,null,null,null,null,null,null,null,null,null,null,"N.A.","N.A.","N.A.",null,{"$f":"IF(AND(IF(M36=N.A.,0,1)+IF(N36=N.A.,0,1)>0,O36<>N.A.)=TRUE,1,0)","v":0}]
[null,null,null,null,null,null,null,null,null,null,null,null,"N.A.","N.A.","N.A.",null,0]
[null,null,null,null,null,null,null,null,null,null,null,null,"N.A.","N.A.","N.A.",null,0]
[null,null,null,null,null,null,null,null,null,null,null,null,"N.A.","N.A.","N.A.",null,0]
[null,null,null,null,null,null,null,null,null,null,null,null,"N.A.","N.A.","N.A.",null,0]
[null,null,null,null,null,null,null,null,null,null,null,null,"N.A.","N.A.","N.A.",null,0]
[null,null,null,null,null,null,null,null,null,null,null,null,"N.A.","N.A.","N.A.",null,0]
[null,null,null,null,null,null,null,null,null,null,null,null,"N.A.","N.A.","N.A.",null,0]
[null,null,null,null,null,null,null,null,null,null,null,null,"N.A.","N.A.","N.A.",null,0]
[null,null,null,null,null,null,null,null,null,null,null,null,"N.A.","N.A.","N.A.",null,0]
[null,null,null,null,null,null,null,null,null,null,null,null,"N.A.","N.A.","N.A.",null,0]
[null,null,null,null,null,null,null,null,null,null,null,null,"N.A.","N.A.","N.A.",null,0]
[null,null,null,null,null,null,null,null,null,null,null,null,"N.A.","N.A.","N.A.",null,0]
[null,null,null,null,null,null,null,null,null,null,null,null,"N.A.","N.A.","N.A.",null,0]
[null,null,null,null,null,null,null,null,null,null,null,null,"N.A.","N.A.","N.A.",null,0]
[null,null,null,null,null,null,null,null,null,null,null,null,"N.A.","N.A.","N.A.",null,0]
[null,null,null,null,null,null,null,null,null,null,null,null,"N.A.","N.A.","N.A.",null,0]
[null,null,null,null,null,null,null,null,null,null,null,null,"N.A.","N.A.","N.A.",null,0]
[null,null,null,null,null,null,null,null,null,null,null,null,"N.A.","N.A.","N.A.",null,0]
[null,null,null,null,null,null,null,null,null,null,null,null,"N.A.","N.A.","N.A.",null,0]
[null,null,null,null,null,null,null,null,null,null,null,null,"N.A.","N.A.","N.A.",null,0]
[null,null,null,null,null,null,null,null,null,null,null,null,"N.A.","N.A.","N.A.",null,0]
[null,null,null,null,null,null,null,null,null,null,null,null,"N.A.","N.A.","N.A.",null,0]
[null,null,null,null,null,null,null,null,null,null,null,null,"N.A.","N.A.","N.A.",null,0]
[null,null,null,null,null,null,null,null,null,null,null,null,"N.A.","N.A.","N.A.",null,0]
[null,null,null,null,null,null,null,null,null,null,null,null,"N.A.","N.A.","N.A.",null,0]
[null,null,null,null,null,null,null,null,null,null,null,null,"N.A.","N.A.","N.A.",null,0]
[null,null,null,null,null,null,null,null,null,null,null,null,"N.A.","N.A.","N.A.",null,0]
[null,null,null,null,null,null,null,null,null,null,null,null,"N.A.","N.A.","N.A.",null,0]
[null,null,null,null,null,null,null,null,null,null,null,null,"N.A.","N.A.","N.A.",null,0]
[null,null,null,null,null,null,null,null,null,null,null,null,"N.A.","N.A.","N.A.",null,0]
[null,null,null,null,null,null,null,null,null,null,null,null,"N.A.","N.A.","N.A.",null,0]
[null,null,null,null,null,null,null,null,null,null,null,null,"N.A.","N.A.","N.A.",null,{"$f":"IF(AND(IF(M68=N.A.,0,1)+IF(N68=N.A.,0,1)>0,O68<>N.A.)=TRUE,1,0)","v":0}]
[null,null,null,null,null,null,null,null,null,null,null,null,"N.A.","N.A.","N.A.",null,0]
[null,null,null,null,null,null,null,null,null,null,null,null,"N.A.","N.A.","N.A.",null,0]
[null,null,null,null,null,null,null,null,null,null,null,null,"N.A.","N.A.","N.A.",null,0]
[null,null,null,null,null,null,null,null,null,null,null,null,"N.A.","N.A.","N.A.",null,0]
[null,null,null,null,null,null,null,null,null,null,null,null,"N.A.","N.A.","N.A.",null,0]
[null,null,null,null,null,null,null,null,null,null,null,null,"N.A.","N.A.","N.A.",null,0]
[null,null,null,null,null,null,null,null,null,null,null,null,"N.A.","N.A.","N.A.",null,0]
[null,null,null,null,null,null,null,null,null,null,null,null,"N.A.","N.A.","N.A.",null,0]
[null,null,null,null,null,null,null,null,null,null,null,null,"N.A.","N.A.","N.A.",null,0]
[null,null,null,null,null,null,null,null,null,null,null,null,"N.A.","N.A.","N.A.",null,0]
[null,null,null,null,null,null,null,null,null,null,null,null,"N.A.","N.A.","N.A.",null,0]
[null,null,null,null,null,null,null,null,null,null,null,null,"N.A.","N.A.","N.A.",null,0]
[null,null,null,null,null,null,null,null,null,null,null,null,"N.A.","N.A.","N.A.",null,0]
[null,null,null,null,null,null,null,null,null,null,null,null,"N.A.","N.A.","N.A.",null,0]
[null,null,null,null,null,null,null,null,null,null,null,null,"N.A.","N.A.","N.A.",null,0]
[null,null,null,null,null,null,null,null,null,null,null,null,"N.A.","N.A.","N.A.",null,0]
[null,null,null,null,null,null,null,null,null,null,null,null,"N.A.","N.A.","N.A.",null,0]
[null,null,null,null,null,null,null,null,null,null,null,null,"N.A.","N.A.","N.A.",null,0]
[null,null,null,null,null,null,null,null,null,null,null,null,"N.A.","N.A.","N.A.",null,0]
[null,null,null,null,null,null,null,null,null,null,null,null,"N.A.","N.A.","N.A.",null,0]
[null,null,null,null,null,null,null,null,null,null,null,null,"N.A.","N.A.","N.A.",null,0]
[null,null,null,null,null,null,null,null,null,null,null,null,"N.A.","N.A.","N.A.",null,0]
[null,null,null,null,null,null,null,null,null,null,null,null,"N.A.","N.A.","N.A.",null,0]
[null,null,null,null,null,null,null,null,null,null,null,null,"N.A.","N.A.","N.A.",null,0]
[null,null,null,null,null,null,null,null,null,null,null,null,"N.A.","N.A.","N.A.",null,0]
[null,null,null,null,null,null,null,null,null,null,null,null,"N.A.","N.A.","N.A.",null,0]
[null,null,null,null,null,null,null,null,null,null,null,null,"N.A.","N.A.","N.A.",null,0]
[null,null,null,null,null,null,null,null,null,null,null,null,"N.A.","N.A.","N.A.",null,0]
[null,null,null,null,null,null,null,null,null,null,null,null,"N.A.","N.A.","N.A.",null,0]
[null,null,null,null,null,null,null,null,null,null,null,null,"N.A.","N.A.","N.A.",null,0]
[null,null,null,null,null,null,null,null,null,null,null,null,"N.A.","N.A.","N.A.",null,0]
[null,null,null,null,null,null,null,null,null,null,null,null,"N.A.","N.A.","N.A.",null,{"$f":"IF(AND(IF(M100=N.A.,0,1)+IF(N100=N.A.,0,1)>0,O100<>N.A.)=TRUE,1,0)","v":0}]
[null,null,null,null,null,null,null,null,null,null,null,null,"N.A.","N.A.","N.A.",null,{"$f":"IF(AND(IF(M101=N.A.,0,1)+IF(N101=N.A.,0,1)>0,O101<>N.A.)=TRUE,1,0)","v":0}]
[null,null,null,null,null,null,null,null,null,null,null,null,"N.A.","N.A.","N.A.",null,{"$f":"IF(AND(IF(M102=N.A.,0,1)+IF(N102=N.A.,0,1)>0,O102<>N.A.)=TRUE,1,0)","v":0}]
[]
[]
["Note"]
["Le celle evidenziate in rosso indicano la selezione di campi non consentiti"]

{"sheet":"Mod. Migr. Utenze da altro Cont","index":7,"n_rows":106,"n_cols":17,"rows_kept":106,"cut":false,"hidden":false,"merged":[[0,0,0,10],[1,0,1,10],[1,12,1,14]]}
["Utenze intestate all'Amministrazione (non in Convenzione Mobile 6) da migrare su profilo Ricaricabile"]
["Compilare la seguente tabella caratterizzando tutte le SIM richieste in base alle indicazioni per la caratterizzazione e configurazione delle SIM contenute nelle ISTRUZIONI PER LA COMPILAZIONE.\n(*) E' possibile richiedere l'attivazione di pacchetti incrementali durante la gestione dell'emergenza COVID-19, utilizzando la colonna denominata Pacchetto Traffico NAZ+SEE in sostituzione. (Es: Pacchetto L20 Gb + Opzione 40 Gb = 60Gb -  selezionare \"pacchetto L60\" nell'ultima colonna) -tale opzione decadrà automaticamente a fine emergenza Covid19 –",null,null,null,null,null,null,null,null,null,null,null,{"$f":"IF(Q3,\"Attenzione: le Ricariche Sotto Soglia e la Ricarica One Shot se presenti entrambe vengono attivate in modo indipendente fra loro\",\"\")","v":""}]
["N. della Sede di consegna","Numero Telefonico","Mantenimento SIM/\nSostituzione SIM","Tipologia Utenza","Pacchetto Traffico NAZ+SEE (*)","Traffico Over Bundle NAZ+SEE","Traffico Extra Bundle","Traffico Roaming EXTRA SEE  ","Traffico Roaming EXTRA SEE Over Pacchetto giornaliero","Soglie spesa dati roaming EXTRA SEE a consumo","Utenza Standard o Prioritaria","Modalità di Ricarica","Ricarica sotto soglia\n(soglia 4,95 €)","Ricarica d'emergenza (soglia 2,5 €)","Ricarica \"One Shot\"","Pacchetto Traffico NAZ+SEE in sostituzione (*)",{"$f":"SUM($Q$4:$Q$104)>0","v":false}]
[1,"334 9453386","Nuova SIM 128K Triple Cut","Fonia_Dati","Pacchetto_L4","Disabilitato - Attenzione per l'attivazione della prestazione deve essere presente almeno una ricarica sotto soglia o una ricarica di emergenza","Bloccato","N.A.","N.A.","N.A.","Standard","Rinuncia","N.A.","N.A.","N.A.",null,{"$f":"IF(AND(IF(M4=N.A.,0,1)+IF(N4=N.A.,0,1)>0,O4<>N.A.)=TRUE,1,0)","v":0}]
[1,"334 9453525","Nuova SIM 128K Triple Cut","Fonia_Dati","Pacchetto_L4","Disabilitato - Attenzione per l'attivazione della prestazione deve essere presente almeno una ricarica sotto soglia o una ricarica di emergenza","Bloccato","N.A.","N.A.","N.A.","Standard","Rinuncia","N.A.","N.A.","N.A.",null,0]
[1,"333 1642607","Nuova SIM 128K Triple Cut","Fonia_Dati","Pacchetto_L4","Disabilitato - Attenzione per l'attivazione della prestazione deve essere presente almeno una ricarica sotto soglia o una ricarica di emergenza","Bloccato","N.A.","N.A.","N.A.","Standard","Rinuncia","N.A.","N.A.","N.A.",null,0]
[1,"333 1643024","Nuova SIM 128K Triple Cut","Fonia_Dati","Pacchetto_L4","Disabilitato - Attenzione per l'attivazione della prestazione deve essere presente almeno una ricarica sotto soglia o una ricarica di emergenza","Bloccato","N.A.","N.A.","N.A.","Standard","Rinuncia","N.A.","N.A.","N.A.",null,0]
[1,"333 1643075","Nuova SIM 128K Triple Cut","Fonia_Dati","Pacchetto_L4","Disabilitato - Attenzione per l'attivazione della prestazione deve essere presente almeno una ricarica sotto soglia o una ricarica di emergenza","Bloccato","N.A.","N.A.","N.A.","Standard","Rinuncia","N.A.","N.A.","N.A.",null,0]
[1,"333 1643225","Nuova SIM 128K Triple Cut","Fonia_Dati","Pacchetto_L4","Disabilitato - Attenzione per l'attivazione della prestazione deve essere presente almeno una ricarica sotto soglia o una ricarica di emergenza","Bloccato","N.A.","N.A.","N.A.","Standard","Rinuncia","N.A.","N.A.","N.A.",null,0]
[1,"333 1643392","Nuova SIM 128K Triple Cut","Fonia_Dati","Pacchetto_L4","Disabilitato - Attenzione per l'attivazione della prestazione deve essere presente almeno una ricarica sotto soglia o una ricarica di emergenza","Bloccato","N.A.","N.A.","N.A.","Standard","Rinuncia","N.A.","N.A.","N.A.",null,0]
[1,"333 1643525","Nuova SIM 128K Triple Cut","Fonia_Dati","Pacchetto_L4","Disabilitato - Attenzione per l'attivazione della prestazione deve essere presente almeno una ricarica sotto soglia o una ricarica di emergenza","Bloccato","N.A.","N.A.","N.A.","Standard","Rinuncia","N.A.","N.A.","N.A.",null,0]
[1,"333 1643526","Nuova SIM 128K Triple Cut","Fonia_Dati","Pacchetto_L20","Disabilitato - Attenzione per l'attivazione della prestazione deve essere presente almeno una ricarica sotto soglia o una ricarica di emergenza","Bloccato","N.A.","N.A.","N.A.","Standard","Rinuncia","N.A.","N.A.","N.A.",null,0]
[1,"333 1643612","Nuova SIM 128K Triple Cut","Fonia_Dati","Pacchetto_L4","Disabilitato - Attenzione per l'attivazione della prestazione deve essere presente almeno una ricarica sotto soglia o una ricarica di emergenza","Bloccato","N.A.","N.A.","N.A.","Standard","Rinuncia","N.A.","N.A.","N.A.",null,0]
[null,null,null,null,null,null,null,null,null,null,null,null,"N.A.","N.A.",null,null,0]
[null,null,null,null,null,null,null,null,null,null,null,null,"N.A.","N.A.",null,null,0]
[null,null,null,null,null,null,null,null,null,null,null,null,"N.A.","N.A.",null,null,0]
[null,null,null,null,null,null,null,null,null,null,null,null,"N.A.","N.A.",null,null,0]
[null,null,null,null,null,null,null,null,null,null,null,null,"N.A.","N.A.",null,null,0]
[null,null,null,null,null,null,null,null,null,null,null,null,"N.A.","N.A.",null,null,0]
[null,null,null,null,null,null,null,null,null,null,null,null,"N.A.","N.A.",null,null,0]
[null,null,null,null,null,null,null,null,null,null,null,null,"N.A.","N.A.",null,null,0]
[null,null,null,null,null,null,null,null,null,null,null,null,"N.A.","N.A.",null,null,0]
[null,null,null,null,null,null,null,null,null,null,null,null,"N.A.","N.A.",null,null,0]
[null,null,null,null,null,null,null,null,null,null,null,null,"N.A.","N.A.",null,null,0]
[null,null,null,null,null,null,null,null,null,null,null,null,"N.A.","N.A.",null,null,0]
[null,null,null,null,null,null,null,null,null,null,null,null,"N.A.","N.A.",null,null,0]
[null,null,null,null,null,null,null,null,null,null,null,null,"N.A.","N.A.",null,null,0]
[null,null,null,null,null,null,null,null,null,null,null,null,"N.A.","N.A.",null,null,0]
[null,null,null,null,null,null,null,null,null,null,null,null,"N.A.","N.A.",null,null,0]
[null,null,null,null,null,null,null,null,null,null,null,null,"N.A.","N.A.",null,null,0]
[null,null,null,null,null,null,null,null,null,null,null,null,"N.A.","N.A.",null,null,0]
[null,null,null,null,null,null,null,null,null,null,null,null,"N.A.","N.A.",null,null,0]
[null,null,null,null,null,null,null,null,null,null,null,null,"N.A.","N.A.",null,null,0]
[null,null,null,null,null,null,null,null,null,null,null,null,"N.A.","N.A.",null,null,0]
[null,null,null,null,null,null,null,null,null,null,null,null,"N.A.","N.A.",null,null,0]
[null,null,null,null,null,null,null,null,null,null,null,null,"N.A.","N.A.",null,null,{"$f":"IF(AND(IF(M36=N.A.,0,1)+IF(N36=N.A.,0,1)>0,O36<>N.A.)=TRUE,1,0)","v":0}]
[null,null,null,null,null,null,null,null,null,null,null,null,"N.A.","N.A.",null,null,0]
[null,null,null,null,null,null,null,null,null,null,null,null,"N.A.","N.A.",null,null,0]
[null,null,null,null,null,null,null,null,null,null,null,null,"N.A.","N.A.",null,null,0]
[null,null,null,null,null,null,null,null,null,null,null,null,"N.A.","N.A.",null,null,0]
[null,null,null,null,null,null,null,null,null,null,null,null,"N.A.","N.A.",null,null,0]
[null,null,null,null,null,null,null,null,null,null,null,null,"N.A.","N.A.",null,null,0]
[null,null,null,null,null,null,null,null,null,null,null,null,"N.A.","N.A.",null,null,0]
[null,null,null,null,null,null,null,null,null,null,null,null,"N.A.","N.A.",null,null,0]
[null,null,null,null,null,null,null,null,null,null,null,null,"N.A.","N.A.",null,null,0]
[null,null,null,null,null,null,null,null,null,null,null,null,"N.A.","N.A.",null,null,0]
[null,null,null,null,null,null,null,null,null,null,null,null,"N.A.","N.A.",null,null,0]
[null,null,null,null,null,null,null,null,null,null,null,null,"N.A.","N.A.",null,null,0]
[null,null,null,null,null,null,null,null,null,null,null,null,"N.A.","N.A.",null,null,0]
[null,null,null,null,null,null,null,null,null,null,null,null,"N.A.","N.A.",null,null,0]
[null,null,null,null,null,null,null,null,null,null,null,null,"N.A.","N.A.",null,null,0]
[null,null,null,null,null,null,null,null,null,null,null,null,"N.A.","N.A.",null,null,0]
[null,null,null,null,null,null,null,null,null,null,null,null,"N.A.","N.A.",null,null,0]
[null,null,null,null,null,null,null,null,null,null,null,null,"N.A.","N.A.",null,null,0]
[null,null,null,null,null,null,null,null,null,null,null,null,"N.A.","N.A.",null,null,0]
[null,null,null,null,null,null,null,null,null,null,null,null,"N.A.","N.A.",null,null,0]
[null,null,null,null,null,null,null,null,null,null,null,null,"N.A.","N.A.",null,null,0]
[null,null,null,null,null,null,null,null,null,null,null,null,"N.A.","N.A.",null,null,0]
[null,null,null,null,null,null,null,null,null,null,null,null,"N.A.","N.A.",null,null,0]
[null,null,null,null,null,null,null,null,null,null,null,null,"N.A.","N.A.",null,null,0]
[null,null,null,null,null,null,null,null,null,null,null,null,"N.A.","N.A.",null,null,0]
[null,null,null,null,null,null,null,null,null,null,null,null,"N.A.","N.A.",null,null,0]
[null,null,null,null,null,null,null,null,null,null,null,null,"N.A.","N.A.",null,null,0]
[null,null,null,null,null,null,null,null,null,null,null,null,"N.A.","N.A.",null,null,0]
[null,null,null,null,null,null,null,null,null,null,null,null,"N.A.","N.A.",null,null,0]
[null,null,null,null,null,null,null,null,null,null,null,null,"N.A.","N.A.",null,null,0]
[null,null,null,null,null,null,null,null,null,null,null,null,"N.A.","N.A.",null,null,0]
[null,null,null,null,null,null,null,null,null,null,null,null,"N.A.","N.A.",null,null,{"$f":"IF(AND(IF(M68=N.A.,0,1)+IF(N68=N.A.,0,1)>0,O68<>N.A.)=TRUE,1,0)","v":0}]
[null,null,null,null,null,null,null,null,null,null,null,null,"N.A.","N.A.",null,null,0]
[null,null,null,null,null,null,null,null,null,null,null,null,"N.A.","N.A.",null,null,0]
[null,null,null,null,null,null,null,null,null,null,null,null,"N.A.","N.A.",null,null,0]
[null,null,null,null,null,null,null,null,null,null,null,null,"N.A.","N.A.",null,null,0]
[null,null,null,null,null,null,null,null,null,null,null,null,"N.A.","N.A.",null,null,0]
[null,null,null,null,null,null,null,null,null,null,null,null,"N.A.","N.A.",null,null,0]
[null,null,null,null,null,null,null,null,null,null,null,null,"N.A.","N.A.",null,null,0]
[null,null,null,null,null,null,null,null,null,null,null,null,"N.A.","N.A.",null,null,0]
[null,null,null,null,null,null,null,null,null,null,null,null,"N.A.","N.A.",null,null,0]
[null,null,null,null,null,null,null,null,null,null,null,null,"N.A.","N.A.",null,null,0]
[null,null,null,null,null,null,null,null,null,null,null,null,"N.A.","N.A.",null,null,0]
[null,null,null,null,null,null,null,null,null,null,null,null,"N.A.","N.A.",null,null,0]
[null,null,null,null,null,null,null,null,null,null,null,null,"N.A.","N.A.",null,null,0]
[null,null,null,null,null,null,null,null,null,null,null,null,"N.A.","N.A.",null,null,0]
[null,null,null,null,null,null,null,null,null,null,null,null,"N.A.","N.A.",null,null,0]
[null,null,null,null,null,null,null,null,null,null,null,null,"N.A.","N.A.",null,null,0]
[null,null,null,null,null,null,null,null,null,null,null,null,"N.A.","N.A.",null,null,0]
[null,null,null,null,null,null,null,null,null,null,null,null,"N.A.","N.A.",null,null,0]
[null,null,null,null,null,null,null,null,null,null,null,null,"N.A.","N.A.",null,null,0]
[null,null,null,null,null,null,null,null,null,null,null,null,"N.A.","N.A.",null,null,0]
[null,null,null,null,null,null,null,null,null,null,null,null,"N.A.","N.A.",null,null,0]
[null,null,null,null,null,null,null,null,null,null,null,null,"N.A.","N.A.",null,null,0]
[null,null,null,null,null,null,null,null,null,null,null,null,"N.A.","N.A.",null,null,0]
[null,null,null,null,null,null,null,null,null,null,null,null,"N.A.","N.A.",null,null,0]
[null,null,null,null,null,null,null,null,null,null,null,null,"N.A.","N.A.",null,null,0]
[null,null,null,null,null,null,null,null,null,null,null,null,"N.A.","N.A.",null,null,0]
[null,null,null,null,null,null,null,null,null,null,null,null,"N.A.","N.A.",null,null,0]
[null,null,null,null,null,null,null,null,null,null,null,null,"N.A.","N.A.",null,null,0]
[null,null,null,null,null,null,null,null,null,null,null,null,"N.A.","N.A.",null,null,0]
[null,null,null,null,null,null,null,null,null,null,null,null,"N.A.","N.A.",null,null,0]
[null,null,null,null,null,null,null,null,null,null,null,null,"N.A.","N.A.",null,null,0]
[null,null,null,null,null,null,null,null,null,null,null,null,"N.A.","N.A.",null,null,{"$f":"IF(AND(IF(M100=N.A.,0,1)+IF(N100=N.A.,0,1)>0,O100<>N.A.)=TRUE,1,0)","v":0}]
[null,null,null,null,null,null,null,null,null,null,null,null,"N.A.","N.A.",null,null,{"$f":"IF(AND(IF(M101=N.A.,0,1)+IF(N101=N.A.,0,1)>0,O101<>N.A.)=TRUE,1,0)","v":0}]
[null,null,null,null,null,null,null,null,null,null,null,null,"N.A.","N.A.",null,null,{"$f":"IF(AND(IF(M102=N.A.,0,1)+IF(N102=N.A.,0,1)>0,O102<>N.A.)=TRUE,1,0)","v":0}]
[]
[]
["Note"]
["Le celle evidenziate in rosso indicano la selezione di campi non consentiti"]

{"sheet":"Pick List","index":8,"n_rows":16,"n_cols":13,"rows_kept":16,"cut":false,"hidden":true,"merged":[]}
[null,"Pacchetto Traffico NAZ+SEE","Traffico\nOver Bundle NAZ+SEE","Traffico Extra Bundle","Traffico Roaming EXTRA SEE  ","Traffico Roaming EXTRA SEE Over Pacchetto giornaliero","Soglie spesa dati roaming EXTRA SEE","Profili di abilitazione RPV","Modalità di Ricarica","Ricarica sotto soglia (soglia 4,95)","Ricarica d'emergenza\n(soglia 2,5 €)","Ricarica \"One Shot\"","Varie"]
[null,"Pacchetto_S1","Disabilitato","Bloccato","N.A.","","N.A.","Gruppo RPV","Rinuncia","N.A.","N.A.","N.A.","Standard"]
[null,"Pacchetto_S4","Abilitato (traffico a consumo)","Abilitato","Pacchetto_giornaliero_R50","Bloccato","Soglia Informativa 50€","Profilo 1","Conferma","6 €","9 €","7 €","Prioritaria"]
[null,"Pacchetto_M4",null,"Abilitato_TIM_TUO_ROAMING_ON_EXTRA_SEE","Pacchetto_giornaliero_R100","Abilitato","Soglia Dispositiva 50€","Profilo 2",null,"12 €",null,"22 €"]
[null,"Pacchetto_M20","N.A.",null,"A_carico_Dipendente","N.A.","Soglia Informativa 100€","Profilo 3",null,"24 €",null,"44 €","Fonia_Dati"]
[null,"Pacchetto_L4",null,null,null,null,"Soglia Dispositiva 100 €","Profilo 4",null,"48 €",null,"88 €"]
[null,"Pacchetto_L20",null,"Disabilitato - Attenzione per l'attivazione della prestazione deve essere presente almeno una ricarica sotto soglia o una ricarica di emergenza",null,null,"Soglia Informativa 150€","Profilo 5",null,null,null,null,"Utenza Ricaricabile a Pacchetto - Pacchetto S1"]
[null,null,null,null,null,null,"Soglia Dispositiva 150€","Profilo 6",null,null,null,null,"Utenza Ricaricabile a Pacchetto - Pacchetto S4"]
[null,"N.A.",null,null,null,null,null,"Profilo 7","=J2&K2",null,null,null,"Utenza Ricaricabile a Pacchetto - Pacchetto M4"]
[null,"Pacchetto_L60",null,null,null,null,"Soglia 50€ Dipendente","Profilo 8",null,null,null,null,"Utenza Ricaricabile a Pacchetto - Pacchetto M20"]
[null,"Pacchetto_L100",null,null,null,null,null,"Profilo 9",null,null,null,null,"Utenza Ricaricabile a Pacchetto - Pacchetto L4"]
[null,null,null,null,null,null,null,"Profilo 10",null,null,null,null,"Utenza Ricaricabile a Pacchetto - Pacchetto L20"]
[null,"Regole convalida dati"]
[null,"=SE(C4=\"Fonia/Dati\";Plafond_Dati_Naz_Ue;Plafond_Dati_Naz_UE_M2M)\n\n","=INDIRETTO(Plafond dati nazionali+UE)","=IF(OR(L4&M4=\"N.A.N.A.\";OR(L4&M4=\"\";L4&M4=\"N.A.\"));N.A.N.A.;INDIRECT(D4))\n\n=IF(OR($Q4&$R4=\"N.A.N.A.\";OR($Q4&$R4=\"\";$Q4&$R4=\"N.A.\"));N.A.N.A.;INDIRECT($I4))\n\n=IF(OR($M4&$N4=\"N.A.N.A.\";OR($M4&$N4=\"\";$M4&$N4=\"N.A.\"));N.A.N.A.;INDIRECT($E4))\n\nPunta all'elenco contenuto nella tabella di questa colonna","=IF(OR(L4&M4=\"N.A.N.A.\";OR(L4&M4=\"\";L4&M4=\"N.A.\"));N.A.N.A.;Traffico_Extra_Bundle)\n\n=IF(OR($Q4&$R4=\"N.A.N.A.\";OR($Q4&$R4=\"\";$Q4&$R4=\"N.A.\"));N.A.N.A.;Traffico_Extra_Bundle)\n\n=IF(OR($M4&$N4=\"N.A.N.A.\";OR($M4&$N4=\"\";$M4&$N4=\"N.A.\"));N.A.N.A.;Traffico_Extra_Bundle)","=SE(Traffico Roaming EXTRA UE=\"N.A.\";\"N.A.\";INDIRETTO(Traffico Dati Roaming EXTRA UE))","=SE(Traffico Roaming EXTRA UE =\"Abilitato_TIM_TUO_ROAMING_ON_EXTRA_UE\";Soglia_Dipendente;SE(Traffico Roaming EXTRA UE Over Pacchetto giornaliero=\"Bloccato\";Nullo;SE(Traffico Roaming EXTRA UE Over Pacchetto giornaliero=Nullo;Nullo;Soglie)))","Profilo 11",null,"=AND(OR($L4&$M4=\"N.A.N.A.\";OR($L4&$M4=\"\";$L4&$M4=\"N.A.\"));OR(OR($E4=\"Abilitato (traffico a consumo)\";$E4=N.A.N.A.);OR($F4=\"Abilitato\";$F4=N.A.N.A.)))\n","=AND(OR(L4&M4=\"N.A.N.A.\";OR(L4&M4=\"\";L4&M4=\"N.A.\"));OR(OR($E4=\"Abilitato (traffico a consumo)\";$E4='Pick List'!$D$7);OR($F4=\"Abilitato\";$F4='Pick List'!$D$7)))"]
[null,null,null,null,null,null,null,null,null,"=AND(OR(Q4&R4=\"N.A.N.A.\";OR(Q4&R4=\"\";Q4&R4=\"N.A.\"));OR(OR($J4=\"Abilitato (traffico a consumo)\";$J4='Pick List'!$D$7);OR($K4=\"Abilitato\";$K4='Pick List'!$D$7)))"]
[null,null,null,null,null,null,null,null,null,"=AND(OR($M4&$N4=\"N.A.N.A.\";OR($M4&$N4=\"\";$M4&$N4=\"N.A.\"));OR(OR($F4=\"Abilitato (traffico a consumo)\";$F4=N.A.N.A.);OR($G4=\"Abilitato\";$G4=N.A.N.A.)))"]